fUST/lending_fUST_20250407
["ID","MTS","AMOUNT","RATE_DAILY","PERIOD"]
[357356717,1744014641296,-151.0,0.00037386,14]
[357356718,1744014641306,-660.456785,0.00037386,14]
[357356719,1744014641315,-151.0,0.00037386,14]
[357356720,1744014641325,-151.0,0.00037386,14]
[357356721,1744014641335,-284.458657,0.00037386,14]
[357356722,1744014641344,-284.458657,0.00037386,14]
[357356723,1744014641354,-206.04567,0.00037386,14]
[357356724,1744014641364,-206.04567,0.00037386,14]
[357356725,1744014641373,-296.109562,0.00037386,14]
[357356726,1744014641383,-296.109562,0.00037386,14]
[357356727,1744014641392,-151.0,0.00037386,14]
[357356728,1744014641402,-151.0,0.00037386,14]
[357356729,1744014641412,-160.0,0.00037395,2]
[357356730,1744014641422,-151.0,0.000374,11]
[357356731,1744014641432,-2000.0,0.00037453,4]
[357356732,1744014641442,-156.27527198,0.00037554,2]
[357356733,1744014641452,-151.0,0.000376,16]
[357356734,1744014641467,-151.0,0.000376,15]
[357356735,1744014641477,-151.0,0.000376,15]
[357356736,1744014641487,-151.0,0.000376,15]
[357356737,1744014641497,-23685.3596418,0.00037632,3]
[357356738,1744014641507,-2492.0251474,0.00037639,4]
[357356739,1744014641516,-151.0,0.00037642,14]
[357356740,1744014641526,-2609.792775,0.00037642,14]
[357356741,1744014641535,-2609.792775,0.00037642,14]
[357356742,1744014641544,-151.0,0.00037644,14]
[357356743,1744014641554,-151.0,0.00037644,14]
[357356744,1744014641565,-151.0,0.00037644,14]
[357356745,1744014641575,-152.740628,0.00037644,14]
[357356746,1744014641585,-152.740628,0.00037644,14]
[357356747,1744014641594,-151.0,0.00037644,14]
[357356748,1744014641604,-245.882523,0.00037644,14]
[357356749,1744014641613,-660.456785,0.00037644,14]
[357356750,1744014641623,-151.0,0.00037644,14]
[357356751,1744014641633,-660.456785,0.00037644,14]
[357356752,1744014641642,-513.056456,0.00037644,14]
[357356753,1744014641652,-483.58635288,0.00037644,14]
[357356754,1744014642170,-0.0010385,0.00035803,14]
[357356755,1744014642182,-914.5416255,0.00035803,14]
[357356756,1744014642191,-914.542664,0.0003687,14]
[357356757,1744014642200,-914.542664,0.00037376,14]
[357356758,1744014642212,-29.47010312,0.00037644,14]
[357356759,1744014642221,-284.458657,0.00037644,14]
[357356761,1744014642231,-284.458657,0.00037644,14]
[357356763,1744014642241,-827.619437,0.00037644,14]
[357356766,1744014642250,-827.619437,0.00037644,14]
[357356769,1744014642259,-206.04567,0.00037644,14]
[357356770,1744014642269,-206.04567,0.00037644,14]
[357356771,1744014642280,-151.0,0.00037644,14]
[357356772,1744014642290,-151.0,0.00037648,14]
[357356773,1744014642299,-228.182589,0.00037648,14]
[357356775,1744014642308,-914.542664,0.00037648,14]
[357356778,1744014642318,-151.0,0.00037654,14]
[357356780,1744014642328,-3508.019207,0.00037654,14]
[357356784,1744014642338,-3508.019207,0.00037654,14]
[357356786,1744014642347,-151.0,0.00037654,14]
[357356787,1744014642357,-151.0,0.00037654,14]
[357356790,1744014642367,-273.562049,0.00037654,14]
[357356792,1744014642377,-1165.595339,0.00037654,2]
[357356795,1744014642386,-1165.595339,0.00037654,2]
[357356797,1744014642395,-1165.595339,0.00037654,2]
[357356798,1744014642404,-1165.595339,0.00037654,2]
[357356799,1744014642413,-151.0,0.00037654,14]
[357356800,1744014642423,-151.0,0.00037654,14]
[357356801,1744014642432,-151.0,0.00037654,14]
[357356802,1744014642441,-320.093832,0.00037654,14]
[357356803,1744014642451,-320.093832,0.00037654,14]
[357356804,1744014642463,-410.741747,0.00037654,14]
[357356805,1744014642473,-410.741747,0.00037654,14]
[357356806,1744014642482,-410.741747,0.00037654,14]
[357356807,1744014642491,-410.741747,0.00037654,14]
[357356808,1744014642501,-151.0,0.00037654,14]
[357356809,1744014642510,-151.0,0.00037654,14]
[357356810,1744014642519,-151.0,0.00037654,14]
[357356811,1744014642528,-151.0,0.00037654,14]
[357356812,1744014642537,-354.088148,0.00037654,14]
[357356813,1744014642546,-354.088148,0.00037654,14]
[357356814,1744014642555,-152.740628,0.00037654,14]
[357356815,1744014642564,-152.740628,0.00037654,14]
[357356816,1744014642574,-152.740628,0.00037654,14]
[357356817,1744014642583,-152.740628,0.00037654,14]
[357356818,1744014642592,-151.0,0.00037654,14]
[357356819,1744014642602,-218.618253,0.00037654,14]
[357356820,1744014642611,-218.618253,0.00037654,14]
[357356821,1744014642620,-660.456785,0.00037654,14]
[357356822,1744014642630,-151.0,0.00037654,14]
[357356823,1744014642639,-660.456785,0.00037654,14]
[357356824,1744014642648,-151.0,0.00037654,14]
[357356825,1744014642658,-513.056456,0.00037654,14]
[357356826,1744014642668,-513.056456,0.00037654,14]
[357356827,1744014642677,-513.056456,0.00037654,14]
[357356828,1744014642686,-513.056456,0.00037654,14]
[357356829,1744014642696,-716.053365,0.00037654,14]
[357356830,1744014642710,-284.458657,0.00037654,14]
[357356831,1744014642720,-716.053365,0.00037654,14]
[357356835,1744014642862,-1.71359638,0.00037654,14]
[357356913,1744014646180,-763.15,0.00034348,14]
[357357491,1744015831903,-152.0,0.00024,2]
[357357493,1744015831913,-305.8874332,0.00024093,2]
[357357503,1744015832008,-194.1125668,0.00024093,2]
[357357504,1744015832018,-500.0,0.00025961,2]
[357357506,1744015832027,-482.88226267,0.00026081,2]
[357357508,1744015832039,-17.11773733,0.00026081,2]
[357357510,1744015832048,-500.0,0.00026316,2]
[357357512,1744015832057,-215.5361204,0.00026599,2]
[357357513,1744015832066,-113.93141197,0.00026739,2]
[357357515,1744015832078,-869.48887298,0.00026739,2]
[357357519,1744015832101,-2769.09740255,0.00026739,2]
[357357520,1744015832111,-4686.48394857,0.000269,7]
[357357522,1744015832124,-1365.12435503,0.000269,7]
[357357524,1744015832133,-500.0,0.00027397,5]
[357357526,1744015832142,-5561.37564497,0.0002759,7]
[357357586,1744015838022,-490.23265834,0.0002759,7]
[357357588,1744015838032,-300.0,0.00027899,2]
[357357590,1744015838041,-1327.51734095,0.00028279,7]
[357357592,1744015838053,-447.27509576,0.00028279,7]
[357357594,1744015838064,-416.57355725,0.00028279,7]
[357357596,1744015838075,-522.71292882,0.00028279,7]
[357357599,1744015838086,-3337.52938053,0.00028279,7]
[357357601,1744015838096,-3727.1599918,0.00028457,2]
[357357603,1744015838105,-500.0,0.0002855,2]
[357357605,1744015838115,-500.0,0.00028653,2]
[357357606,1744015838124,-6051.60830331,0.00028969,8]
[357357608,1744015838134,-151.0,0.00029279,7]
[357357610,1744015838144,-151.0,0.00029279,7]
[357357612,1744015838154,-313.14235,0.00029279,7]
[357357613,1744015838163,-313.14235,0.00029279,7]
[357357615,1744015838173,-151.0,0.00029279,7]
[357357617,1744015838183,-151.0,0.00029279,7]
[357357619,1744015838193,-160.0,0.00029279,7]
[357357620,1744015838202,-6051.60830331,0.00029659,8]
[357357622,1744015838212,-935.55568661,0.000297,2]
[357357629,1744015838242,-158.59110678,0.000297,2]
[357357631,1744015838251,-500.0,0.00029797,2]
[357357633,1744015838261,-202.25,0.000298,31]
[357357635,1744015838271,-202.25,0.000298,31]
[357357638,1744015838280,-202.25,0.000298,31]
[357357640,1744015838289,-202.25,0.000298,31]
[357357642,1744015838300,-202.25,0.000298,31]
[357357644,1744015838310,-202.25,0.000298,31]
[357357646,1744015838320,-202.25,0.000298,31]
[357357648,1744015838329,-202.25,0.000298,31]
[357357650,1744015838338,-202.25,0.000298,31]
[357357652,1744015838347,-202.25,0.000298,31]
[357357654,1744015838357,-202.25,0.000298,31]
[357357656,1744015838367,-202.25,0.000298,31]
[357357658,1744015838376,-500.0,0.00029924,2]
[357357660,1744015838389,-28498.63889322,0.0003,60]
[357357662,1744015838406,-5001.36110678,0.0003,60]
[357357665,1744015838416,-420.0,0.00030134,2]
[357357667,1744015838427,-6051.60830331,0.00030348,9]
[357357669,1744015838436,-500.0,0.00030949,7]
[357357671,1744015838446,-6051.60830331,0.00031038,9]
[357357673,1744015838457,-200.0,0.000314,120]
[357357675,1744015838468,-200.0,0.000314,120]
[357357677,1744015838479,-6051.60830331,0.00031728,10]
[357357679,1744015838489,-1094.14679334,0.00032153,2]
[357357681,1744015838499,-170.30279533,0.00032272,2]
[357357683,1744015838509,-603.47534752,0.00032272,2]
[357357685,1744015838520,-151.0,0.00032273,7]
[357357687,1744015838530,-151.0,0.00032273,7]
[357357689,1744015838540,-313.14235,0.00032273,7]
[357357691,1744015838550,-313.14235,0.00032273,7]
[357357693,1744015838560,-152.207896,0.00032273,7]
[357357695,1744015838570,-152.907216,0.00032273,7]
[357357697,1744015838580,-160.0,0.00032273,7]
[357357698,1744015838590,-500.0,0.00032374,7]
[357357700,1744015838600,-6051.60830331,0.00032417,10]
[357357702,1744015838609,-160.0,0.00032486,10]
[357357703,1744015838620,-286.25009588,0.00032506,10]
[357357704,1744015838633,-587.0,0.00032548,2]
[357357705,1744015838644,-679.56509734,0.00032835,2]
[357357706,1744015838654,-1000.0,0.00032877,5]
[357357707,1744015838664,-6051.60830331,0.00033107,11]
[357357708,1744015838674,-200.0,0.000332,120]
[357357709,1744015838683,-163.999656,0.00033314,14]
[357357710,1744015838693,-163.999656,0.00033314,14]
[357357712,1744015838703,-774.776331,0.00033314,2]
[357357714,1744015838712,-774.776331,0.00033314,2]
[357357716,1744015838722,-151.0,0.00033314,14]
[357357718,1744015838732,-151.0,0.00033314,14]
[357357719,1744015838741,-930.836645,0.00033314,14]
[357357721,1744015838751,-930.836645,0.00033314,14]
[357357723,1744015838761,-151.0,0.00033314,14]
[357357725,1744015838776,-500.0,0.00033467,5]
[357357727,1744015838785,-156.35741885,0.00033518,5]
[357357729,1744015838794,-500.0,0.00033518,5]
[357357731,1744015838804,-500.0,0.00033518,5]
[357357733,1744015838814,-500.0,0.00033518,2]
[357357735,1744015838824,-166.95041718,0.00033518,5]
[357357738,1744015838834,-500.0,0.00033518,5]
[357357740,1744015838844,-507.43352697,0.00033518,5]
[357357742,1744015838854,-584.31777921,0.00033518,5]
[357357744,1744015838864,-500.0,0.00033518,5]
[357357746,1744015838873,-500.0,0.00033518,5]
[357357748,1744015838886,-501.6389006,0.00033729,5]
[357357750,1744015838895,-6051.60830331,0.00033797,11]
[357357752,1744015838906,-500.0,0.00033994,5]
[357357754,1744015838915,-500.0,0.00034,120]
[357357756,1744015838925,-1728.26,0.0003405,3]
[357357758,1744015838934,-864.13,0.0003405,3]
[357357760,1744015838944,-432.06,0.0003405,3]
[357357762,1744015838953,-13.05346354,0.0003405,3]
[357357843,1744015840334,-180.03,0.0003405,3]
[357357845,1744015840344,-540.11,0.0003424,3]
[357357847,1744015840354,-500.0,0.0003425,5]
[357357849,1744015840364,-151.0,0.00034254,2]
[357357850,1744015840373,-3271.90358073,0.00034274,2]
[357357851,1744015840388,-2876.832,0.00034274,2]
[357357854,1744015840407,-703.02584068,0.00034274,2]
[357357855,1744015840418,-1613.22329112,0.00034274,2]
[357357857,1744015840430,-7188.21452347,0.00034274,2]
[357357859,1744015840440,-955.29933184,0.00034274,2]
[357357862,1744015840450,-500.0,0.00034284,7]
[357357865,1744015840459,-200.0,0.00034307,2]
[357357867,1744015840469,-2098.60353275,0.00034328,2]
[357357874,1744015840494,-3255.34489603,0.00034328,2]
[357357929,1744015843024,-750.14805691,0.00034328,2]
[357357932,1744015843036,-5094.51242671,0.00034328,2]
[357357933,1744015843048,-4454.5903236,0.00034328,2]
[357357934,1744015843058,-955.29933184,0.00034328,2]
[357357935,1744015843068,-163.999656,0.00034338,14]
[357357937,1744015843078,-163.999656,0.00034338,14]
[357357938,1744015843088,-2666.8,0.00034338,14]
[357357939,1744015843098,-2301.75565006,0.00034338,14]
[357357944,1744015843142,-365.04434994,0.00034338,14]
[357357946,1744015843152,-2666.8,0.00034338,14]
[357357948,1744015843162,-2666.8,0.00034338,14]
[357357950,1744015843172,-2666.8,0.00034338,14]
[357357952,1744015843181,-2666.8,0.00034338,14]
[357357954,1744015843191,-2666.8,0.00034338,14]
[357357957,1744015843201,-2666.8,0.00034338,14]
[357357960,1744015843210,-2666.8,0.00034338,14]
[357357963,1744015843220,-2666.8,0.00034338,14]
[357357965,1744015843230,-2666.8,0.00034338,14]
[357357967,1744015843239,-2666.8,0.00034338,14]
[357357970,1744015843249,-774.776331,0.00034338,2]
[357357973,1744015843258,-774.776331,0.00034338,2]
[357357976,1744015843268,-151.0,0.00034338,14]
[357357979,1744015843277,-151.0,0.00034338,14]
[357357982,1744015843287,-151.0,0.00034338,14]
[357357985,1744015843296,-151.0,0.00034338,14]
[357357987,1744015843305,-930.836645,0.00034338,14]
[357357989,1744015843314,-930.836645,0.00034338,14]
[357357991,1744015843323,-313.14235,0.00034338,14]
[357357993,1744015843332,-313.14235,0.00034338,14]
[357357995,1744015843341,-151.0,0.00034338,14]
[357357997,1744015843350,-151.392664,0.00034348,14]
[357357999,1744015843360,-163.999656,0.00034348,14]
[357358001,1744015843369,-163.999656,0.00034348,14]
[357358003,1744015843378,-151.0,0.00034348,14]
[357358005,1744015843392,-417.340718,0.00034348,14]
[357358007,1744015843401,-417.340718,0.00034348,14]
[357358009,1744015843411,-774.776331,0.00034348,2]
[357358011,1744015843421,-774.776331,0.00034348,2]
[357358013,1744015843431,-1325.041544,0.00034348,2]
[357358015,1744015843441,-1325.041544,0.00034348,2]
[357358017,1744015843450,-151.0,0.00034348,14]
[357358019,1744015843460,-151.0,0.00034348,14]
[357358021,1744015843471,-930.836645,0.00034348,14]
[357358023,1744015843481,-930.836645,0.00034348,14]
[357358025,1744015843490,-151.0,0.00034348,14]
[357358027,1744015843500,-500.0,0.00034373,5]
[357358029,1744015843509,-502.58819591,0.00034373,5]
[357358031,1744015843519,-500.0,0.00034373,2]
[357358033,1744015843528,-500.0,0.00034373,5]
[357358035,1744015843538,-500.0,0.00034373,5]
[357358037,1744015843547,-174.38190682,0.00034373,5]
[357358039,1744015843556,-500.0,0.00034373,5]
[357358041,1744015843565,-500.0,0.00034373,5]
[357358043,1744015843575,-500.0,0.00034373,5]
[357358045,1744015843584,-500.0,0.00034373,5]
[357358061,1744015843721,-421.0148013,0.00034373,5]
[357358063,1744015843732,-500.0,0.00034373,5]
[357358065,1744015843742,-400.41218334,0.00034373,5]
[357358067,1744015843751,-248.05543456,0.00034373,5]
[357358069,1744015843760,-160.99414906,0.00034373,5]
[357358071,1744015843770,-163.9620474,0.00034373,5]
[357358074,1744015843779,-500.0,0.00034373,5]
[357358076,1744015843788,-500.0,0.00034373,5]
[357358078,1744015843798,-500.0,0.00034373,5]
[357358079,1744015843807,-500.0,0.00034373,5]
[357358082,1744015843817,-500.0,0.00034373,5]
[357358084,1744015843826,-442.82545717,0.00034373,5]
[357358086,1744015843836,-500.0,0.00034373,5]
[357358088,1744015843845,-500.0,0.00034373,5]
[357358090,1744015843854,-500.0,0.00034373,5]
[357358092,1744015843863,-500.0,0.00034373,5]
[357358094,1744015843872,-500.0,0.00034373,2]
[357358096,1744015843882,-1101.99,0.00034432,3]
[357358098,1744015843894,-500.0,0.00034441,7]
[357358100,1744015843904,-153.50226281,0.00034441,7]
[357358102,1744015843913,-203.97186839,0.00034441,7]
[357358104,1744015843923,-436.64827164,0.00034441,7]
[357358105,1744015843932,-3575.16669159,0.00034442,2]
[357358106,1744015843945,-4186.79886897,0.00034442,2]
[357358107,1744015843974,-1503.0,0.00034442,2]
[357358108,1744015843986,-3836.95,0.00034442,2]
[357358109,1744015843998,-334.43618997,0.00034442,2]
[357358110,1744015844009,-616.75923711,0.00034442,2]
[357358111,1744015844024,-1307.5820432,0.00034442,2]
[357358372,1744015846282,-292.50620516,0.00034442,2]
[357358375,1744015846292,-198.15576511,0.00034442,2]
[357358397,1744015846448,-450.0,0.00034442,2]
[357358400,1744015846460,-307.14356673,0.00034442,2]
[357358402,1744015846472,-6051.60830331,0.00034486,11]
[357358404,1744015846482,-1094.14679334,0.00034606,2]
[357358406,1744015846491,-151.0,0.000347,12]
[357358408,1744015846501,-151.0,0.00034762,14]
[357358410,1744015846510,-151.0,0.00034762,14]
[357358412,1744015846519,-313.14235,0.00034762,14]
[357358414,1744015846528,-313.14235,0.00034762,14]
[357358416,1744015846538,-303.375879,0.00034773,14]
[357358418,1744015846548,-303.375879,0.00034773,14]
[357358420,1744015846558,-200.0,0.00035,120]
[357358421,1744015846568,-151.0,0.00035,14]
[357358422,1744015846578,-823.0,0.00035156,2]
[357358423,1744015846588,-6051.60830331,0.00035176,12]
[357358424,1744015846598,-202.25,0.000353,31]
[357358425,1744015846608,-202.25,0.000353,31]
[357358430,1744015846768,-202.25,0.000353,31]
[357358433,1744015846782,-202.25,0.000353,31]
[357358435,1744015846794,-202.25,0.000353,31]
[357358437,1744015846806,-202.25,0.000353,31]
[357358439,1744015846817,-202.25,0.000353,31]
[357358441,1744015846828,-202.25,0.000353,31]
[357358443,1744015846839,-202.25,0.000353,31]
[357358445,1744015846851,-202.25,0.000353,31]
[357358447,1744015846862,-202.25,0.000353,31]
[357358449,1744015846874,-202.25,0.000353,31]
[357358451,1744015846895,-202.25,0.000353,31]
[357358452,1744015846906,-202.25,0.000353,31]
[357358453,1744015846918,-202.25,0.000353,31]
[357358454,1744015846943,-202.25,0.000353,31]
[357358455,1744015846956,-202.25,0.000353,31]
[357358456,1744015846969,-202.25,0.000353,31]
[357358457,1744015846981,-202.25,0.000353,31]
[357358458,1744015846993,-202.25,0.000353,31]
[357358459,1744015847004,-202.25,0.000353,31]
[357358460,1744015847017,-202.25,0.000353,31]
[357358461,1744015847030,-202.25,0.000353,31]
[357358462,1744015847041,-202.25,0.000353,31]
[357358463,1744015847053,-500.0,0.00035351,7]
[357358464,1744015847065,-151.0,0.000354,19]
[357358465,1744015847076,-10496.25447394,0.0003542,3]
[357358466,1744015847088,-163.999656,0.0003557,14]
[357358467,1744015847100,-163.999656,0.0003557,14]
[357358468,1744015847112,-774.776331,0.0003557,2]
[357358469,1744015847125,-774.776331,0.0003557,2]
[357358470,1744015847144,-151.0,0.0003557,14]
[357358471,1744015847155,-151.0,0.0003557,14]
[357358472,1744015847166,-930.836645,0.0003557,14]
[357358473,1744015847177,-930.836645,0.0003557,14]
[357358474,1744015847191,-151.0,0.0003557,14]
[357358475,1744015847203,-151.0,0.00035623,2]
[357358476,1744015847214,-207.4,0.00035676,2]
[357358477,1744015847226,-160.0,0.00035688,3]
[357358478,1744015847237,-160.0,0.00035688,3]
[357358479,1744015847247,-151.0,0.000357,13]
[357358480,1744015847259,-7136.75737186,0.00035742,3]
[357358481,1744015847280,-767.8,0.00035742,3]
[357358482,1744015847298,-2760.38275018,0.00035742,3]
[357358789,1744015888069,198.96397308,0.00025,120]
[357358808,1744016871024,-500.0,0.00023515,2]
[357358809,1744016871049,-253.954,0.00024932,2]
[357358847,1744017038140,-246.046,0.00024932,2]
[357358848,1744017038149,-500.0,0.00027097,2]
[357358849,1744017038159,-500.0,0.00027397,5]
[357358850,1744017038169,-391.34177439,0.0002834,2]
[357358851,1744017038179,-966.821,0.0002965,2]
[357358852,1744017038189,-197.0,0.00029799,2]
[357358853,1744017038199,-153.33,0.000298,31]
[357358854,1744017038214,-153.33,0.000298,31]
[357358855,1744017038224,-153.33,0.000298,31]
[357358856,1744017038233,-153.33,0.000298,31]
[357358857,1744017038243,-153.33,0.000298,31]
[357358858,1744017038256,-153.33,0.000298,31]
[357358859,1744017038265,-153.33,0.000298,31]
[357358860,1744017038275,-153.33,0.000298,31]
[357358861,1744017038284,-153.33,0.000298,31]
[357358862,1744017038294,-153.33,0.000298,31]
[357358863,1744017038304,-153.33,0.000298,31]
[357358864,1744017038313,-153.33,0.000298,31]
[357358865,1744017038323,-3472.04325015,0.000299,8]
[357358866,1744017038332,-3472.04325015,0.00030486,9]
[357358867,1744017038342,-3472.04325015,0.00031072,9]
[357358868,1744017038351,-3472.04325015,0.00031659,10]
[357358869,1744017038361,-3472.04325015,0.00032245,10]
[357358870,1744017038371,-363.13930914,0.00032454,2]
[357358871,1744017038385,-679.56509734,0.00032555,10]
[357358872,1744017038394,-679.56509734,0.00032734,2]
[357358873,1744017038407,-3472.04325015,0.00032831,10]
[357358874,1744017038416,-1000.0,0.00032877,5]
[357358875,1744017038426,-3472.04325015,0.00033417,11]
[357358876,1744017038435,-165.040196,0.00033964,2]
[357358877,1744017038445,-3472.04325015,0.00034003,11]
[357358878,1744017038455,-3472.04325015,0.0003459,12]
[357358879,1744017038464,-3472.04325015,0.00035176,12]
[357358880,1744017038474,-337.967,0.000353,41]
[357358881,1744017038483,-153.33,0.000353,31]
[357358882,1744017038493,-153.33,0.000353,31]
[357358883,1744017038502,-153.33,0.000353,31]
[357358884,1744017038512,-153.33,0.000353,31]
[357358885,1744017038522,-153.33,0.000353,31]
[357358886,1744017038532,-153.33,0.000353,31]
[357358887,1744017038541,-153.33,0.000353,31]
[357358888,1744017038551,-153.33,0.000353,31]
[357358889,1744017038560,-153.33,0.000353,31]
[357358890,1744017038570,-153.33,0.000353,31]
[357358891,1744017038580,-153.33,0.000353,31]
[357358892,1744017038590,-153.33,0.000353,31]
[357358893,1744017038600,-153.33,0.000353,31]
[357358894,1744017038610,-153.33,0.000353,31]
[357358895,1744017038620,-153.33,0.000353,31]
[357358896,1744017038629,-153.33,0.000353,31]
[357358897,1744017038639,-153.33,0.000353,31]
[357358898,1744017038652,-153.33,0.000353,31]
[357358899,1744017038662,-153.33,0.000353,31]
[357358900,1744017038671,-153.33,0.000353,31]
[357358901,1744017038682,-153.33,0.000353,31]
[357358902,1744017038692,-153.33,0.000353,31]
[357358903,1744017038701,-153.33,0.000353,31]
[357358904,1744017038711,-153.33,0.000353,31]
[357358905,1744017038721,-3126.1,0.00035421,7]
[357358906,1744017038730,-3126.1,0.00035421,7]
[357358907,1744017038740,-3126.1,0.00035421,7]
[357358908,1744017038749,-3126.1,0.00035421,7]
[357358909,1744017038759,-679.56509734,0.00035421,7]
[357358910,1744017038768,-500.0,0.00035597,7]
[357358911,1744017038777,-174.956538,0.00035632,2]
[357358912,1744017038789,-155.73661,0.00035632,2]
[357358913,1744017038801,-160.0,0.00035732,2]
[357358914,1744017038810,-574.91,0.00035742,3]
[357358915,1744017038820,-262.956073,0.00035752,14]
[357358916,1744017038830,-2023.300878,0.00035752,14]
[357358917,1744017038839,-164.836536,0.00035752,14]
[357358918,1744017038849,-164.836536,0.00035752,14]
[357358919,1744017038858,-151.0,0.00035752,14]
[357358920,1744017038869,-193.566522,0.00035752,14]
[357358921,1744017038878,-151.0,0.00035762,14]
[357358922,1744017038888,-151.0,0.00035762,14]
[357358923,1744017038897,-151.0,0.00035762,14]
[357358924,1744017038907,-3472.04325015,0.00035762,12]
[357358925,1744017038917,-303.375879,0.00035803,14]
[357358926,1744017038927,-303.375879,0.00035803,14]
[357358927,1744017038938,-362.980705,0.0003589,2]
[357358928,1744017038947,-290.71635275,0.000359,2]
[357358929,1744017038957,-287.46,0.0003599,3]
[357358930,1744017038967,-862.39,0.0003599,3]
[357358931,1744017038976,-562.75,0.00035999,2]
[357358932,1744017038987,-562.75,0.00035999,2]
[357358933,1744017038996,-562.75,0.00035999,2]
[357358934,1744017039006,-562.75,0.00035999,2]
[357358935,1744017039015,-562.75,0.00035999,2]
[357358936,1744017039024,-562.75,0.00035999,2]
[357358937,1744017039034,-562.75,0.00035999,2]
[357358938,1744017039043,-562.75,0.00035999,2]
[357358939,1744017039053,-562.75,0.00035999,2]
[357358940,1744017039062,-562.75,0.00035999,2]
[357358941,1744017039071,-500.0,0.00035999,15]
[357358942,1744017039080,-171.20189219,0.00035999,15]
[357358944,1744017039090,-202.8655243,0.00035999,15]
[357358945,1744017039099,-418.28805362,0.00035999,15]
[357358946,1744017039109,-500.0,0.00035999,15]
[357358947,1744017039119,-500000.0,0.00036,2]
[357358948,1744017039128,-151.0,0.00036,19]
[357358949,1744017039138,-357.0,0.00036,120]
[357358950,1744017039149,-290.71635271,0.00036145,2]
[357358951,1744017039158,-3409.61269143,0.000362,98]
[357358952,1744017039168,-174.956538,0.0003626,2]
[357358953,1744017039178,-155.73661,0.0003626,2]
[357358954,1744017039187,-151.0,0.000363,18]
[357358955,1744017039196,-3472.04325015,0.00036348,13]
[357358957,1744017039205,-290.71635271,0.00036389,2]
[357358958,1744017039215,-2592.5511826,0.00036524,4]
[357358959,1744017039225,-151.0,0.000366,14]
[357358960,1744017039234,-16486.68973733,0.0003663,2]
[357358961,1744017039243,-151.0,0.00036673,14]
[357358962,1744017039253,-733.427941,0.00036673,14]
[357358963,1744017039263,-733.427941,0.00036673,14]
[357358964,1744017039272,-160.0,0.00036837,3]
[357358965,1744017039281,-774.776331,0.00036847,2]
[357358966,1744017039291,-774.776331,0.00036847,2]
[357358967,1744017039300,-151.0,0.00036847,14]
[357358968,1744017039309,-166.05751,0.00036847,14]
[357358969,1744017039320,-151.0,0.00036847,14]
[357358970,1744017039330,-151.0,0.00036847,14]
[357358972,1744017039339,-930.836645,0.00036847,14]
[357358973,1744017039348,-930.836645,0.00036847,14]
[357358974,1744017039358,-313.14235,0.00036847,14]
[357358975,1744017039368,-313.14235,0.00036847,14]
[357358976,1744017039377,-151.0,0.00036847,14]
[357358977,1744017039386,-151.0,0.00036847,14]
[357358978,1744017039395,-261.611118,0.00036847,14]
[357358979,1744017039407,-261.611118,0.00036847,14]
[357358980,1744017039417,-426.187883,0.00036847,14]
[357358981,1744017039427,-426.187883,0.00036847,14]
[357358982,1744017039436,-357.169974,0.00036847,14]
[357358983,1744017039446,-357.169974,0.00036847,14]
[357358984,1744017039455,-260.072162,0.00036847,14]